[Event "Titled Tuesday Blitz February 07 Late 2023"]
[White "Saveliev, Alexei"]
[Black "Flynn, Jacob"]
[WhiteFideId "24128546"]
[BlackFideId "2509393"]
[WhiteElo "2385"]
[BlackElo "2102"]
[Result "0-1"]
[Round "11"]
[TimeControl "180+2"]
[Date "2023.02.07"]
[WhiteClock "0:00:36"]
[BlackClock "0:00:12"]

1. c4 {[%clk 0:02:17]}  c5 {[%clk 0:02:48]} 2. e3 {[%clk 0:02:14]}  Nf6 {[%clk 0:02:47]} 3. d4 {[%clk 0:02:14]}  cxd4 {[%clk 0:02:47]} 4. exd4 {[%clk 0:02:15]}  d5 {[%clk 0:02:47]} 5. Nf3 {[%clk 0:02:15]}  g6 {[%clk 0:02:47]} 6. Nc3 {[%clk 0:02:15]}  Bg7 {[%clk 0:02:47]} 7. Bg5 {[%clk 0:02:12]}  Ne4 {[%clk 0:02:43]} 8. Bh4 {[%clk 0:02:11]}  Nxc3 {[%clk 0:02:43]} 9. bxc3 {[%clk 0:02:12]}  O-O {[%clk 0:02:40]} 10. cxd5 {[%clk 0:02:10]}  Qxd5 {[%clk 0:02:40]} 11. Be2 {[%clk 0:02:11]}  Nc6 {[%clk 0:02:36]} 12. O-O {[%clk 0:02:11]}  e5 {[%clk 0:02:37]} 13. c4 {[%clk 0:02:11]}  Qa5 {[%clk 0:02:35]} 14. d5 {[%clk 0:02:10]}  Nd4 {[%clk 0:02:35]} 15. Nxd4 {[%clk 0:02:07]}  exd4 {[%clk 0:02:35]} 16. Bd3 {[%clk 0:02:07]}  Bd7 {[%clk 0:02:31]} 17. Qb3 {[%clk 0:02:07]}  b6 {[%clk 0:02:23]} 18. Rfe1 {[%clk 0:02:05]}  Rfe8 {[%clk 0:02:22]} 19. Be7 {[%clk 0:02:00]}  Bf8 {[%clk 0:02:04]} 20. d6 {[%clk 0:01:55]}  Bxe7 {[%clk 0:02:03]} 21. dxe7 {[%clk 0:01:53]}  Qc5 {[%clk 0:02:01]} 22. Be4 {[%clk 0:01:44]}  Rac8 {[%clk 0:01:57]} 23. Bd5 {[%clk 0:01:44]}  Rxe7 {[%clk 0:01:57]} 24. h4 {[%clk 0:01:37]}  h5 {[%clk 0:01:51]} 25. Qf3 {[%clk 0:01:36]}  Rce8 {[%clk 0:01:42]} 26. Rxe7 {[%clk 0:01:35]}  Qxe7 {[%clk 0:01:43]} 27. Rd1 {[%clk 0:01:32]}  Bg4 {[%clk 0:01:39]} 28. Qd3 {[%clk 0:01:28]}  Bxd1 {[%clk 0:00:42]} 29. Qxg6+ {[%clk 0:01:27]}  Kh8 {[%clk 0:00:42]} 30. Bxf7 {[%clk 0:01:23]}  Qe1+ {[%clk 0:00:40]} 31. Kh2 {[%clk 0:01:23]}  Qe5+ {[%clk 0:00:31]} 32. g3 {[%clk 0:01:19]}  Qg7 {[%clk 0:00:25]} 33. Bxe8 {[%clk 0:01:05]}  Qxg6 {[%clk 0:00:24]} 34. Bxg6 {[%clk 0:01:06]}  Be2 {[%clk 0:00:21]} 35. a3 {[%clk 0:00:52]}  d3 {[%clk 0:00:18]} 36. Kg2 {[%clk 0:00:45]}  d2 {[%clk 0:00:18]} 37. Bc2 {[%clk 0:00:46]}  d1=Q {[%clk 0:00:19]} 38. Bxd1 {[%clk 0:00:46]}  Bxd1 {[%clk 0:00:20]} 39. f3 {[%clk 0:00:43]}  Be2 {[%clk 0:00:20]} 40. Kf2 {[%clk 0:00:43]}  Bxc4 {[%clk 0:00:20]} 41. g4 {[%clk 0:00:43]}  Kg7 {[%clk 0:00:18]} 42. Ke3 {[%clk 0:00:43]}  Be6 {[%clk 0:00:17]} 43. Kf4 {[%clk 0:00:38]}  a5 {[%clk 0:00:16]} 44. Ke5 {[%clk 0:00:35]}  Bxg4 {[%clk 0:00:11]} 45. fxg4 {[%clk 0:00:36]}  hxg4 {[%clk 0:00:12]} 46. Kf4 {[%clk 0:00:35]}  b5 {[%clk 0:00:12]} 47. Kxg4 {[%clk 0:00:35]}  b4 {[%clk 0:00:12]} 48. axb4 {[%clk 0:00:36]}  a4 {[%clk 0:00:12]} 0-1


[Site "https://www.chess.com"]

[Event "Titled Tuesday Blitz February 07 Late 2023"]
[White "Sadovsky, Artem"]
[Black "Kochetov, Andrey"]
[WhiteFideId "4155840"]
[BlackFideId "24130532"]
[WhiteElo "2276"]
[BlackElo "2165"]
[Result "1-0"]
[Round "11"]
[TimeControl "180+2"]
[Date "2023.02.07"]
[WhiteClock "0:00:14"]
[BlackClock "0:00:06"]

1. Nf3 {[%clk 0:02:54]}  Nf6 {[%clk 0:02:57]} 2. e3 {[%clk 0:02:52]}  e6 {[%clk 0:02:51]} 3. b3 {[%clk 0:02:51]}  b6 {[%clk 0:02:51]} 4. Bb2 {[%clk 0:02:51]}  Bb7 {[%clk 0:02:52]} 5. Be2 {[%clk 0:02:52]}  Be7 {[%clk 0:02:52]} 6. O-O {[%clk 0:02:52]}  O-O {[%clk 0:02:52]} 7. c4 {[%clk 0:02:52]}  d5 {[%clk 0:02:53]} 8. d3 {[%clk 0:02:51]}  c5 {[%clk 0:02:49]} 9. Nbd2 {[%clk 0:02:50]}  Nc6 {[%clk 0:02:47]} 10. a3 {[%clk 0:02:47]}  dxc4 {[%clk 0:02:43]} 11. Nxc4 {[%clk 0:02:45]}  Qc7 {[%clk 0:02:42]} 12. Qc2 {[%clk 0:02:42]}  Rfd8 {[%clk 0:02:41]} 13. Rac1 {[%clk 0:02:40]}  Rac8 {[%clk 0:02:41]} 14. Rfd1 {[%clk 0:02:41]}  Nd5 {[%clk 0:02:33]} 15. Qb1 {[%clk 0:02:38]}  Bf6 {[%clk 0:02:33]} 16. Qa1 {[%clk 0:02:27]}  Qe7 {[%clk 0:02:27]} 17. Nfe5 {[%clk 0:02:19]}  Nxe5 {[%clk 0:02:27]} 18. Nxe5 {[%clk 0:02:17]}  Nc7 {[%clk 0:02:16]} 19. d4 {[%clk 0:02:05]}  cxd4 {[%clk 0:02:08]} 20. Bxd4 {[%clk 0:01:58]}  Nd5 {[%clk 0:01:52]} 21. Bf3 {[%clk 0:01:47]}  Rxc1 {[%clk 0:01:51]} 22. Rxc1 {[%clk 0:01:46]}  Bxe5 {[%clk 0:01:44]} 23. Bxe5 {[%clk 0:01:45]}  f6 {[%clk 0:01:41]} 24. Bd4 {[%clk 0:01:39]}  Rc8 {[%clk 0:01:41]} 25. Rxc8+ {[%clk 0:01:37]}  Bxc8 {[%clk 0:01:41]} 26. Qc1 {[%clk 0:01:34]}  Qc7 {[%clk 0:01:32]} 27. Qxc7 {[%clk 0:01:32]}  Nxc7 {[%clk 0:01:33]} 28. Bb2 {[%clk 0:01:19]}  Kf7 {[%clk 0:01:32]} 29. Kf1 {[%clk 0:01:17]}  e5 {[%clk 0:01:28]} 30. Ke1 {[%clk 0:01:10]}  Be6 {[%clk 0:01:27]} 31. Bd1 {[%clk 0:01:10]}  a5 {[%clk 0:01:13]} 32. Kd2 {[%clk 0:01:08]}  Ke7 {[%clk 0:01:11]} 33. e4 {[%clk 0:01:08]}  Kd6 {[%clk 0:01:10]} 34. a4 {[%clk 0:01:04]}  Na6 {[%clk 0:01:09]} 35. Ba3+ {[%clk 0:01:03]}  Nc5 {[%clk 0:00:57]} 36. Kc3 {[%clk 0:01:04]}  Kc6 {[%clk 0:00:55]} 37. f3 {[%clk 0:01:05]}  g6 {[%clk 0:00:55]} 38. Bc2 {[%clk 0:01:05]}  Bd7 {[%clk 0:00:50]} 39. b4 {[%clk 0:00:59]}  axb4+ {[%clk 0:00:42]} 40. Bxb4 {[%clk 0:00:59]}  Bc8 {[%clk 0:00:42]} 41. a5 {[%clk 0:00:51]}  bxa5 {[%clk 0:00:40]} 42. Bxa5 {[%clk 0:00:52]}  Ba6 {[%clk 0:00:33]} 43. Bd8 {[%clk 0:00:43]}  Nd7 {[%clk 0:00:32]} 44. Kd2 {[%clk 0:00:25]}  Bf1 {[%clk 0:00:31]} 45. g3 {[%clk 0:00:25]}  Bb5 {[%clk 0:00:29]} 46. Bb3 {[%clk 0:00:24]}  Kd6 {[%clk 0:00:25]} 47. Bg8 {[%clk 0:00:23]}  h6 {[%clk 0:00:26]} 48. Bf7 {[%clk 0:00:22]}  g5 {[%clk 0:00:25]} 49. Ke3 {[%clk 0:00:22]}  Bc6 {[%clk 0:00:18]} 50. g4 {[%clk 0:00:21]}  Bb5 {[%clk 0:00:18]} 51. Be8 {[%clk 0:00:22]}  Ke6 {[%clk 0:00:17]} 52. h3 {[%clk 0:00:17]}  Bf1 {[%clk 0:00:16]} 53. Bxd7+ {[%clk 0:00:15]}  Kxd7 {[%clk 0:00:12]} 54. Bxf6 {[%clk 0:00:16]}  Ke6 {[%clk 0:00:06]} 55. Bg7 {[%clk 0:00:16]}  Bxh3 {[%clk 0:00:05]} 56. Bxh6 {[%clk 0:00:16]}  Kf6 {[%clk 0:00:05]} 57. Kf2 {[%clk 0:00:16]}  Kg6 {[%clk 0:00:04]} 58. Bf8 {[%clk 0:00:16]}  Kf7 {[%clk 0:00:04]} 59. Bb4 {[%clk 0:00:15]}  Ke6 {[%clk 0:00:03]} 60. Bd2 {[%clk 0:00:15]}  Kf6 {[%clk 0:00:04]} 61. Bc1 {[%clk 0:00:16]}  Kg6 {[%clk 0:00:04]} 62. Be3 {[%clk 0:00:16]}  Kf6 {[%clk 0:00:04]} 63. Bb6 {[%clk 0:00:16]}  Kg6 {[%clk 0:00:02]} 64. Bd8 {[%clk 0:00:17]}  Kh6 {[%clk 0:00:02]} 65. Bf6 {[%clk 0:00:17]}  Kg6 {[%clk 0:00:03]} 66. Bxe5 {[%clk 0:00:18]}  Kh6 {[%clk 0:00:03]} 67. Bc7 {[%clk 0:00:16]}  Kg6 {[%clk 0:00:03]} 68. Bd8 {[%clk 0:00:17]}  Kh6 {[%clk 0:00:03]} 69. e5 {[%clk 0:00:17]}  Kg6 {[%clk 0:00:03]} 70. e6 {[%clk 0:00:18]}  Kg7 {[%clk 0:00:03]} 71. Bxg5 {[%clk 0:00:18]}  Kg6 {[%clk 0:00:04]} 72. e7 {[%clk 0:00:17]}  Kf7 {[%clk 0:00:04]} 73. Bh4 {[%clk 0:00:18]}  Ke8 {[%clk 0:00:04]} 74. Kg3 {[%clk 0:00:18]}  Bf1 {[%clk 0:00:04]} 75. f4 {[%clk 0:00:19]}  Bd3 {[%clk 0:00:04]} 76. f5 {[%clk 0:00:19]}  Bc4 {[%clk 0:00:05]} 77. Kf4 {[%clk 0:00:20]}  Kf7 {[%clk 0:00:05]} 78. g5 {[%clk 0:00:21]}  Bb5 {[%clk 0:00:03]} 79. g6+ {[%clk 0:00:21]}  Kg7 {[%clk 0:00:04]} 80. Kg5 {[%clk 0:00:21]}  Be8 {[%clk 0:00:04]} 81. f6+ {[%clk 0:00:22]}  Kg8 {[%clk 0:00:04]} 82. Kh6 {[%clk 0:00:21]}  Kh8 {[%clk 0:00:04]} 83. f7 {[%clk 0:00:21]}  Bxf7 {[%clk 0:00:04]} 84. Bf6+ {[%clk 0:00:13]}  Kg8 {[%clk 0:00:04]} 85. gxf7+ {[%clk 0:00:13]}  Kxf7 {[%clk 0:00:05]} 86. Bh4 {[%clk 0:00:13]}  Ke8 {[%clk 0:00:05]} 87. Kg7 {[%clk 0:00:13]}  Kd7 {[%clk 0:00:06]} 88. Kf7 {[%clk 0:00:14]} 1-0


[Site "https://www.chess.com"]

[Event "Titled Tuesday Blitz February 07 Late 2023"]
[White "Pakleza, Zbigniew"]
[Black "Bozorov, Makhsum"]
[WhiteFideId "1119290"]
[BlackFideId "14201330"]
[WhiteElo "2494"]
[BlackElo "2145"]
[Result "1-0"]
[Round "11"]
[TimeControl "180+2"]
[Date "2023.02.07"]
[WhiteClock "0:00:16"]
[BlackClock "0:00:02"]

1. Nf3 {[%clk 0:03:00]}  Nf6 {[%clk 0:02:58]} 2. c4 {[%clk 0:02:58]}  g6 {[%clk 0:02:58]} 3. b4 {[%clk 0:02:58]}  Bg7 {[%clk 0:02:58]} 4. Bb2 {[%clk 0:02:58]}  O-O {[%clk 0:02:58]} 5. e3 {[%clk 0:02:58]}  b6 {[%clk 0:02:56]} 6. Be2 {[%clk 0:02:57]}  c5 {[%clk 0:02:57]} 7. a3 {[%clk 0:02:49]}  Bb7 {[%clk 0:02:52]} 8. O-O {[%clk 0:02:48]}  d6 {[%clk 0:02:52]} 9. Nc3 {[%clk 0:02:44]}  Nbd7 {[%clk 0:02:51]} 10. d4 {[%clk 0:02:40]}  Ne4 {[%clk 0:02:49]} 11. Nxe4 {[%clk 0:02:32]}  Bxe4 {[%clk 0:02:49]} 12. Rc1 {[%clk 0:02:31]}  Rc8 {[%clk 0:02:34]} 13. Qb3 {[%clk 0:02:09]}  Qc7 {[%clk 0:02:25]} 14. Rfd1 {[%clk 0:02:07]}  Rfd8 {[%clk 0:02:16]} 15. h3 {[%clk 0:02:04]}  Qb8 {[%clk 0:02:07]} 16. Ng5 {[%clk 0:01:56]}  Bb7 {[%clk 0:02:00]} 17. d5 {[%clk 0:01:53]}  cxb4 {[%clk 0:01:50]} 18. axb4 {[%clk 0:01:51]}  a5 {[%clk 0:01:49]} 19. Bxg7 {[%clk 0:01:46]}  Kxg7 {[%clk 0:01:48]} 20. bxa5 {[%clk 0:01:39]}  bxa5 {[%clk 0:01:48]} 21. Qc3+ {[%clk 0:01:38]}  Kg8 {[%clk 0:01:45]} 22. Qxa5 {[%clk 0:01:37]}  Qa8 {[%clk 0:01:39]} 23. Qd2 {[%clk 0:01:34]}  Nc5 {[%clk 0:01:27]} 24. Qd4 {[%clk 0:01:20]}  h6 {[%clk 0:01:15]} 25. Ra1 {[%clk 0:01:05]}  Qb8 {[%clk 0:01:12]} 26. Nf3 {[%clk 0:00:56]}  Nb3 {[%clk 0:01:12]} 27. Qh4 {[%clk 0:00:55]}  Nxa1 {[%clk 0:01:09]} 28. Qxh6 {[%clk 0:00:54]}  Bxd5 {[%clk 0:00:53]} 29. cxd5 {[%clk 0:00:27]}  Qb2 {[%clk 0:00:54]} 30. Rd4 {[%clk 0:00:20]}  Qxe2 {[%clk 0:00:13]} 31. Rh4 {[%clk 0:00:20]}  Rc1+ {[%clk 0:00:11]} 32. Kh2 {[%clk 0:00:19]}  Qb2 {[%clk 0:00:10]} 33. Nd4 {[%clk 0:00:16]}  Rh1+ {[%clk 0:00:02]} 34. Kxh1 {[%clk 0:00:16]} 1-0


[Site "https://www.chess.com"]

[Event "Titled Tuesday Blitz February 07 Late 2023"]
[White "Cuenca Jimenez, Jose Fernando"]
[Black "Dragomirescu, Angela"]
[WhiteFideId "2255570"]
[BlackFideId "1209914"]
[WhiteElo "2535"]
[BlackElo "2130"]
[Result "0-1"]
[Round "11"]
[TimeControl "180+2"]
[Date "2023.02.07"]
[WhiteClock "0:00:02"]
[BlackClock "0:00:16"]

1. c4 {[%clk 0:03:00]}  Nf6 {[%clk 0:02:59]} 2. Nc3 {[%clk 0:02:58]}  e6 {[%clk 0:02:59]} 3. Nf3 {[%clk 0:02:57]}  d5 {[%clk 0:02:58]} 4. d4 {[%clk 0:02:57]}  dxc4 {[%clk 0:02:51]} 5. e4 {[%clk 0:02:55]}  b5 {[%clk 0:02:52]} 6. e5 {[%clk 0:02:53]}  Nd5 {[%clk 0:02:52]} 7. Nxb5 {[%clk 0:02:53]}  Nb6 {[%clk 0:02:53]} 8. Be2 {[%clk 0:02:53]}  Be7 {[%clk 0:02:52]} 9. O-O {[%clk 0:02:52]}  O-O {[%clk 0:02:53]} 10. Be3 {[%clk 0:02:52]}  Bb7 {[%clk 0:02:53]} 11. Qc1 {[%clk 0:02:46]}  Bd5 {[%clk 0:02:44]} 12. Nc3 {[%clk 0:02:43]}  c6 {[%clk 0:02:37]} 13. Qc2 {[%clk 0:02:33]}  N8d7 {[%clk 0:02:31]} 14. Rfd1 {[%clk 0:02:31]}  Rc8 {[%clk 0:02:23]} 15. Ne4 {[%clk 0:02:30]}  h6 {[%clk 0:02:11]} 16. b3 {[%clk 0:02:16]}  c5 {[%clk 0:02:01]} 17. bxc4 {[%clk 0:01:52]}  cxd4 {[%clk 0:02:01]} 18. Rxd4 {[%clk 0:01:48]}  Qc7 {[%clk 0:01:47]} 19. Qd1 {[%clk 0:01:27]}  Bxe4 {[%clk 0:00:57]} 20. Rxe4 {[%clk 0:01:27]}  Rfd8 {[%clk 0:00:58]} 21. Qc1 {[%clk 0:01:14]}  Bf8 {[%clk 0:00:46]} 22. Qc2 {[%clk 0:00:52]}  Nc5 {[%clk 0:00:37]} 23. Rg4 {[%clk 0:00:51]}  Kh8 {[%clk 0:00:36]} 24. Rc1 {[%clk 0:00:37]}  Nbd7 {[%clk 0:00:34]} 25. Bd4 {[%clk 0:00:27]}  Rb8 {[%clk 0:00:29]} 26. h4 {[%clk 0:00:26]}  Rdc8 {[%clk 0:00:26]} 27. h5 {[%clk 0:00:26]}  Qa5 {[%clk 0:00:20]} 28. Bc3 {[%clk 0:00:24]}  Qa4 {[%clk 0:00:20]} 29. Qd2 {[%clk 0:00:23]}  Nb6 {[%clk 0:00:20]} 30. Qf4 {[%clk 0:00:21]}  Rb7 {[%clk 0:00:21]} 31. Qd2 {[%clk 0:00:13]}  Rd7 {[%clk 0:00:20]} 32. Qc2 {[%clk 0:00:13]}  Qa6 {[%clk 0:00:19]} 33. Bd4 {[%clk 0:00:12]}  Rdc7 {[%clk 0:00:20]} 34. Be3 {[%clk 0:00:11]}  Qb7 {[%clk 0:00:19]} 35. Nd4 {[%clk 0:00:11]}  Ncd7 {[%clk 0:00:19]} 36. Nb5 {[%clk 0:00:09]}  Rc6 {[%clk 0:00:18]} 37. Bf3 {[%clk 0:00:09]}  Nxe5 {[%clk 0:00:18]} 38. Bxc6 {[%clk 0:00:09]}  Qxc6 {[%clk 0:00:18]} 39. Rg3 {[%clk 0:00:06]}  Qb7 {[%clk 0:00:17]} 40. Bd4 {[%clk 0:00:04]}  Nexc4 {[%clk 0:00:17]} 41. Qe2 {[%clk 0:00:03]}  f6 {[%clk 0:00:16]} 42. Nc3 {[%clk 0:00:02]}  e5 {[%clk 0:00:16]} 43. Bxb6 {[%clk 0:00:02]}  Nxb6 {[%clk 0:00:17]} 44. Qd1 {[%clk 0:00:02]}  Ba3 {[%clk 0:00:16]} 45. Rc2 {[%clk 0:00:02]}  Bc5 {[%clk 0:00:16]} 0-1


[Site "https://www.chess.com"]

[Event "Titled Tuesday Blitz February 07 Late 2023"]
[White "Vlassov, Nikolai"]
[Black "Iljin, Timofey"]
[WhiteFideId "4103360"]
[BlackFideId "14110180"]
[WhiteElo "2283"]
[BlackElo "2329"]
[Result "1-0"]
[Round "11"]
[TimeControl "180+2"]
[Date "2023.02.07"]
[WhiteClock "0:00:11"]
[BlackClock "0:00:03"]

1. e4 {[%clk 0:03:00]}  c5 {[%clk 0:03:00]} 2. c3 {[%clk 0:03:00]}  d5 {[%clk 0:03:01]} 3. exd5 {[%clk 0:03:00]}  Nf6 {[%clk 0:03:02]} 4. Bb5+ {[%clk 0:02:58]}  Nbd7 {[%clk 0:02:58]} 5. d4 {[%clk 0:02:58]}  Nxd5 {[%clk 0:02:49]} 6. dxc5 {[%clk 0:02:57]}  e6 {[%clk 0:02:49]} 7. b4 {[%clk 0:02:54]}  Be7 {[%clk 0:02:48]} 8. Nf3 {[%clk 0:02:54]}  O-O {[%clk 0:02:47]} 9. O-O {[%clk 0:02:53]}  Bf6 {[%clk 0:02:43]} 10. Nd4 {[%clk 0:02:48]}  a5 {[%clk 0:02:22]} 11. Bxd7 {[%clk 0:02:43]}  Bxd7 {[%clk 0:02:18]} 12. b5 {[%clk 0:02:35]}  e5 {[%clk 0:01:52]} 13. Nf3 {[%clk 0:01:47]}  Bxb5 {[%clk 0:01:33]} 14. Re1 {[%clk 0:01:48]}  e4 {[%clk 0:01:27]} 15. Nd4 {[%clk 0:01:37]}  Nxc3 {[%clk 0:01:10]} 16. Nxc3 {[%clk 0:01:35]}  Qxd4 {[%clk 0:01:10]} 17. Bb2 {[%clk 0:01:24]}  Qxd1 {[%clk 0:00:56]} 18. Raxd1 {[%clk 0:01:22]}  Bc6 {[%clk 0:00:36]} 19. Ba1 {[%clk 0:01:07]}  Rad8 {[%clk 0:00:29]} 20. h3 {[%clk 0:00:53]}  Rfe8 {[%clk 0:00:20]} 21. Ne2 {[%clk 0:00:27]}  Bxa1 {[%clk 0:00:18]} 22. Rxa1 {[%clk 0:00:26]}  Rd2 {[%clk 0:00:18]} 23. Ng3 {[%clk 0:00:23]}  g6 {[%clk 0:00:18]} 24. Re2 {[%clk 0:00:20]}  Rxe2 {[%clk 0:00:16]} 25. Nxe2 {[%clk 0:00:21]}  Rd8 {[%clk 0:00:17]} 26. Kf1 {[%clk 0:00:19]}  Rd2 {[%clk 0:00:16]} 27. Ke1 {[%clk 0:00:19]}  Rb2 {[%clk 0:00:16]} 28. Nd4 {[%clk 0:00:19]}  Bd5 {[%clk 0:00:13]} 29. a3 {[%clk 0:00:18]}  f5 {[%clk 0:00:11]} 30. Rd1 {[%clk 0:00:18]}  Kf7 {[%clk 0:00:10]} 31. Nxf5 {[%clk 0:00:17]}  gxf5 {[%clk 0:00:07]} 32. Rxd5 {[%clk 0:00:17]}  Ke6 {[%clk 0:00:08]} 33. Rd6+ {[%clk 0:00:17]}  Ke5 {[%clk 0:00:07]} 34. Rd7 {[%clk 0:00:18]}  h5 {[%clk 0:00:06]} 35. h4 {[%clk 0:00:17]}  Rc2 {[%clk 0:00:02]} 36. Rxb7 {[%clk 0:00:16]}  Rxc5 {[%clk 0:00:03]} 37. Rh7 {[%clk 0:00:16]}  Rc3 {[%clk 0:00:03]} 38. Rxh5 {[%clk 0:00:16]}  Rxa3 {[%clk 0:00:03]} 39. g4 {[%clk 0:00:16]}  Rf3 {[%clk 0:00:03]} 40. g5 {[%clk 0:00:11]} 1-0


[Site "https://www.chess.com"]

[Event "Titled Tuesday Blitz February 07 Late 2023"]
[White "Shapiro, Viktor"]
[Black "Estrada Nieto, Julian"]
[WhiteFideId "4175700"]
[BlackFideId "5101018"]
[WhiteElo "2192"]
[BlackElo "2215"]
[Result "1-0"]
[Round "11"]
[TimeControl "180+2"]
[Date "2023.02.07"]
[WhiteClock "0:00:21"]
[BlackClock "0:00:01"]

1. c4 {[%clk 0:03:00]}  e5 {[%clk 0:02:59]} 2. Nc3 {[%clk 0:03:01]}  Nf6 {[%clk 0:03:00]} 3. g3 {[%clk 0:03:01]}  d5 {[%clk 0:02:59]} 4. cxd5 {[%clk 0:03:01]}  Nxd5 {[%clk 0:03:00]} 5. Bg2 {[%clk 0:03:01]}  Nb6 {[%clk 0:03:01]} 6. Nf3 {[%clk 0:03:02]}  Nc6 {[%clk 0:03:01]} 7. d3 {[%clk 0:03:02]}  Be7 {[%clk 0:03:01]} 8. O-O {[%clk 0:03:01]}  O-O {[%clk 0:03:01]} 9. a3 {[%clk 0:03:02]}  Be6 {[%clk 0:02:58]} 10. b4 {[%clk 0:03:01]}  a5 {[%clk 0:02:59]} 11. b5 {[%clk 0:03:00]}  Nd4 {[%clk 0:02:59]} 12. Rb1 {[%clk 0:03:00]}  f6 {[%clk 0:02:47]} 13. Nd2 {[%clk 0:02:58]}  c6 {[%clk 0:02:44]} 14. e3 {[%clk 0:02:51]}  Nxb5 {[%clk 0:02:36]} 15. Nxb5 {[%clk 0:02:51]}  cxb5 {[%clk 0:02:37]} 16. Rxb5 {[%clk 0:02:52]}  Nd5 {[%clk 0:01:46]} 17. Rxb7 {[%clk 0:02:39]}  Qc8 {[%clk 0:01:37]} 18. Bxd5 {[%clk 0:02:05]}  Bxd5 {[%clk 0:01:37]} 19. Rxe7 {[%clk 0:02:05]}  Qc5 {[%clk 0:01:11]} 20. Rd7 {[%clk 0:01:58]}  Bc6 {[%clk 0:01:02]} 21. Qb3+ {[%clk 0:01:54]}  Kh8 {[%clk 0:01:02]} 22. Rc7 {[%clk 0:01:52]}  Qd6 {[%clk 0:00:35]} 23. Qb6 {[%clk 0:01:50]}  Rfc8 {[%clk 0:00:35]} 24. Rxc8+ {[%clk 0:01:50]}  Rxc8 {[%clk 0:00:35]} 25. d4 {[%clk 0:01:27]}  exd4 {[%clk 0:00:19]} 26. Qxd4 {[%clk 0:01:26]}  Qe6 {[%clk 0:00:16]} 27. e4 {[%clk 0:01:25]}  h6 {[%clk 0:00:14]} 28. Re1 {[%clk 0:01:22]}  Bb7 {[%clk 0:00:08]} 29. f3 {[%clk 0:01:16]}  Rc2 {[%clk 0:00:07]} 30. Qd8+ {[%clk 0:00:47]}  Kh7 {[%clk 0:00:07]} 31. Qd3 {[%clk 0:00:47]}  Qc6 {[%clk 0:00:03]} 32. e5+ {[%clk 0:00:30]}  Kh8 {[%clk 0:00:03]} 33. exf6 {[%clk 0:00:29]}  Rxc1 {[%clk 0:00:03]} 34. fxg7+ {[%clk 0:00:29]}  Kxg7 {[%clk 0:00:03]} 35. Rxc1 {[%clk 0:00:26]}  Qxc1+ {[%clk 0:00:03]} 36. Kg2 {[%clk 0:00:26]}  Qc6 {[%clk 0:00:04]} 37. h4 {[%clk 0:00:24]}  h5 {[%clk 0:00:03]} 38. Qd4+ {[%clk 0:00:23]}  Kf8 {[%clk 0:00:02]} 39. Kf2 {[%clk 0:00:23]}  Qc2 {[%clk 0:00:01]} 40. Ke3 {[%clk 0:00:21]} 1-0


[Site "https://www.chess.com"]

[Event "Titled Tuesday Blitz February 07 Late 2023"]
[White "Fiorito, Francisco"]
[Black "Golubev, Mikhail"]
[WhiteFideId "180165"]
[BlackFideId "14100983"]
[WhiteElo "2305"]
[BlackElo "2461"]
[Result "1-0"]
[Round "11"]
[TimeControl "180+2"]
[Date "2023.02.07"]
[WhiteClock "0:00:17"]
[BlackClock "0:00:07"]

1. d4 {[%clk 0:03:00]}  Nf6 {[%clk 0:02:58]} 2. Nc3 {[%clk 0:03:00]}  d5 {[%clk 0:02:55]} 3. Bf4 {[%clk 0:03:00]}  c5 {[%clk 0:02:53]} 4. e3 {[%clk 0:02:56]}  cxd4 {[%clk 0:02:53]} 5. exd4 {[%clk 0:02:57]}  a6 {[%clk 0:02:52]} 6. Nf3 {[%clk 0:02:57]}  Nc6 {[%clk 0:02:50]} 7. Be2 {[%clk 0:02:52]}  Bf5 {[%clk 0:02:45]} 8. h3 {[%clk 0:02:48]}  g6 {[%clk 0:02:37]} 9. O-O {[%clk 0:02:45]}  Bg7 {[%clk 0:02:37]} 10. Na4 {[%clk 0:02:38]}  Ne4 {[%clk 0:02:26]} 11. c3 {[%clk 0:02:24]}  O-O {[%clk 0:02:24]} 12. Nd2 {[%clk 0:02:18]}  Nxd2 {[%clk 0:02:02]} 13. Qxd2 {[%clk 0:02:19]}  b6 {[%clk 0:01:48]} 14. Rfe1 {[%clk 0:02:10]}  Re8 {[%clk 0:01:46]} 15. Bf1 {[%clk 0:02:08]}  Rc8 {[%clk 0:01:32]} 16. Bxa6 {[%clk 0:02:05]}  Ra8 {[%clk 0:01:27]} 17. Bb7 {[%clk 0:02:05]}  Rxa4 {[%clk 0:00:46]} 18. Bxc6 {[%clk 0:02:04]}  Ra7 {[%clk 0:00:45]} 19. Bxe8 {[%clk 0:02:04]}  Qxe8 {[%clk 0:00:44]} 20. Be5 {[%clk 0:02:05]}  f6 {[%clk 0:00:44]} 21. Bg3 {[%clk 0:02:04]}  Rd7 {[%clk 0:00:38]} 22. Re2 {[%clk 0:02:04]}  e6 {[%clk 0:00:33]} 23. Rae1 {[%clk 0:02:03]}  g5 {[%clk 0:00:32]} 24. Bh2 {[%clk 0:02:01]}  h5 {[%clk 0:00:33]} 25. b3 {[%clk 0:01:58]}  h4 {[%clk 0:00:29]} 26. c4 {[%clk 0:01:57]}  dxc4 {[%clk 0:00:29]} 27. bxc4 {[%clk 0:01:57]}  Qc8 {[%clk 0:00:29]} 28. Qc3 {[%clk 0:01:37]}  Kf7 {[%clk 0:00:27]} 29. a4 {[%clk 0:01:31]}  Qc6 {[%clk 0:00:25]} 30. Rb2 {[%clk 0:01:19]}  Bf8 {[%clk 0:00:25]} 31. Rb5 {[%clk 0:01:14]}  Be7 {[%clk 0:00:19]} 32. Kh1 {[%clk 0:00:33]}  Rd8 {[%clk 0:00:16]} 33. f3 {[%clk 0:00:32]}  Rc8 {[%clk 0:00:15]} 34. Qe3 {[%clk 0:00:31]}  Qxc4 {[%clk 0:00:13]} 35. Rxf5 {[%clk 0:00:30]}  Bb4 {[%clk 0:00:11]} 36. Rb5 {[%clk 0:00:17]}  Bxe1 {[%clk 0:00:11]} 37. Qxe1 {[%clk 0:00:18]}  Qxa4 {[%clk 0:00:09]} 38. Rxb6 {[%clk 0:00:17]}  Qa2 {[%clk 0:00:09]} 39. Bg1 {[%clk 0:00:16]}  Rc2 {[%clk 0:00:09]} 40. Rb7+ {[%clk 0:00:16]}  Kg6 {[%clk 0:00:07]} 41. Qe4+ {[%clk 0:00:17]}  f5 {[%clk 0:00:07]} 42. Qe5 {[%clk 0:00:17]} 1-0


[Site "https://www.chess.com"]